{"text_format":"1","workbook":"xlsx","n_sheets":6,"sheets":["Algorithmus-Abfrage","Ergebnis","Faktoren","Einsatzstärke","Liste zur Planung","LV-RS96"],"not_rendered":{"charts":0,"images":0,"macros":0,"external_links":0,"defined_names":13,"comments":0,"pivot_tables":0},"unopened":[],"bounds":{"document_bytes":16777216,"sheet_cells":100000,"rows_first":2000,"rows_last":500,"rows_between":2000,"halvings":0,"cell_chars":16384,"cell_head_chars":4096},"cells_cut":0,"cells_raw":0,"read":"whole","date_system":"1900"}

{"sheet":"Algorithmus-Abfrage","index":0,"n_rows":46,"n_cols":4,"rows_kept":46,"cut":false,"hidden":false,"merged":[]}
[]
[null,"Algorithmus nach Dipl.-Ing. Klaus Maurer"]
[]
[null,"Sanitätsdienst bei Veranstaltungen"]
[]
[]
[null,"Bezeichnung der Veranstaltung/ Ort","Veranstalter","Datum"]
[]
[null,"Risikoanalyse"]
[]
[null,null,"* Bitte die jeweiligen Daten in die grau markierten Felder eingeben."]
[null,"Schritt 1"]
[null,"Wie hoch ist die maximale Besucherzahl?"]
[null,"a) aus Auflagen, Bestuhlungsplänen, etc. :",null,"Besucher"]
[null,"oder","oder"]
[null,"b) aus der Größe der Veranstaltungsfläche?",null,"m²"]
[null,"   (eingegebene Fläche x 4 = Besucherzahl)",{"$f":"C16*4","v":0},"Besucher"]
[]
[null,"Maximal mögliche Besucheranzahl:",{"$f":"IF(C14>C17,C14,IF(C17>C14,C17,IF(C14=C17,C14,0)))","v":0},"Besucher"]
[null,"Nachrichtlich: Punktwert",{"$f":"MaxBesucherPkt","v":0},"Punkte"]
[]
[null,"Schritt 2"]
[null,"Findet die Veranstaltung innerhalb einer geschlossenen baulichen Anlage statt?"]
[null,"Bitte mit Ja oder Nein im grauen Feld antworten.","nein","Ja? / Nein?"]
[null,"Faktor für das Risiko der baulichen Anlage:",{"$f":"IF(C24=\"Ja\",2,1)","v":1}]
[null,"Nachrichtlich: Berechneter Punktwert",{"$f":"MaxBesucherPkt*C25","v":0},"Punkte"]
[]
[null,"Schritt 3"]
[null,"Wie hoch ist die tatsächlich zu erwartende Besucherzahl aus Vorverkauf, Erfahrung, etc. ?",null,"Besucher"]
[null,"Punktwert aus zu erwartender Besucherzahl",{"$f":"TatsBesucherzahl/500","v":0},"Punkte"]
[null,"Nachrichtlich: Berechneter Zwischenpunktwert",{"$f":"C26+C30","v":0},"Punkte"]
[]
[null,"Schritt 4"]
[null,"Zu welcher Gruppe kann die Veranstaltung        zugeordnet werden?"]
[null,"Bitte die entsprechende Veranstaltung auswählen.",1]
[]
[null,"Gefährdungsfaktor:",{"$f":"INDEX(Veranstaltung,C35,2)*100","v":30},"%"]
[null,"Erhöhung des Gefährdungsfaktors aufgrund eigener Erkenntnisse:",null,"%"]
[null,"Summe:",{"$f":"SUM(C37:C38)","v":30},"%"]
[]
[null,"Schritt 5"]
[null,"Sind prominente Personen beteiligt?"]
[null,"Anzahl der Prominenten Personen:",null,"Prominente"]
[null,"Zusätzlich zu berücksichtigende Punktzahl:",{"$f":"ROUNDUP(C43/5,0)*10","v":0}]
[]
[null,"Gesamtrisiko in Punkten:",{"$f":"C31*C39/100+C44","v":0},"Punkte"]

{"sheet":"Ergebnis","index":1,"n_rows":23,"n_cols":4,"rows_kept":23,"cut":false,"hidden":false,"merged":[]}
[]
[null,"Sanitätsdienst bei Veranstaltungen"]
[]
[null,{"$f":"'Algorithmus-Abfrage'!B6","v":0},{"$f":"'Algorithmus-Abfrage'!C6","v":0},{"$f":"'Algorithmus-Abfrage'!D6","v":0}]
[null,"Bezeichnung der Veranstaltung/ Ort","Veranstalter","Datum"]
[]
[null,"Notwendiges Einsatzpotential"]
[]
[null,null,null,"Personal"]
[null,"Einsatzkräfte Sanitäts- und Betreuungsdienst",{"$f":"Helfer","v":0},{"$f":"C10","v":0}]
[]
[null,"Krankentransportwagen",{"$f":"KTW","v":0},{"$f":"C12*2","v":0}]
[]
[null,"Rettungswagen",{"$f":"RTW","v":0},{"$f":"C14*2","v":0}]
[]
[null,"Notarzteinsatzfahrzeuge / Notärzte",{"$f":"NEF","v":0},{"$f":"C16*2","v":0}]
[]
[null,"Großraumkrankentransportwagen",{"$f":"GKTW","v":0},{"$f":"C18*3","v":0}]
[]
[null,"Einsatzleitung",{"$f":"Einsatzleitung","v":0},{"$f":"ROUND((SUM(D10:D18)*0.1),0)","v":0}]
[]
[]
[null,"Summe Einsatzkräfte",null,{"$f":"SUM(D10:D20)","v":0}]

{"sheet":"Faktoren","index":2,"n_rows":35,"n_cols":7,"rows_kept":35,"cut":false,"hidden":false,"merged":[]}
["Gefahrenneigung nach Art der Veranstaltung",null,null,null,"Punktwert nach Besucherzahl"]
[]
["Art der Veranstaltung","Multiplikator",null,null,"Maximale Besucherzahl","Punkte"]
["Ausstellung",0.3,null,null,{"$f":"MaxBesucherzahl","v":0},{"$f":"ROUNDUP((5+E4/10000),0)","v":5},"ab 6001"]
["Basar",0.3,null,null,null,{"$f":"ROUNDUP((E4/500),0)","v":0},"von 1 bis 2000"]
["Demonstration",0.8,null,null,null,{"$f":"ROUNDUP((E4/3000),0)+3","v":3},"bis 6000"]
["Feuerwerk",0.4,null,null,null,{"$f":"IF(E4<2001,F5,IF(E4<6001,F6,IF(E4>6000,F4)))","v":0},"Ergebnis"]
["Flohmarkt",0.3]
["Flugveranstaltung",0.9,null,null,"Tatsächliche Besucherzahl","Punkte"]
["Karnevalsveranstaltung",0.7,null,null,{"$f":"TatsBesucherzahl","v":0},{"$f":"ROUNDUP((5+E10/10000),0)","v":5},"ab 6001"]
["Karnevalumszug",0.7,null,null,null,{"$f":"ROUNDUP((E10/500),0)","v":0},"von 1 bis 2000"]
["Kombi-Veranstaltung Sport - Musik - Show",0.35,null,null,null,{"$f":"ROUNDUP((E10/3000),0)+3","v":3},"bis 6000"]
["Konzert",0.2,null,null,null,{"$f":"IF(E10<2001,F11,IF(E10<6001,F12,IF(E10>6000,F10)))","v":0},"Ergebnis"]
["Kundgebung",0.5]
["Langlauf",0.3]
["Martinzug",0.3,null,null,"Das Kennwort heißt \"Maurer\""]
["Messe",0.3]
["Motorsportveranstaltung",0.8]
["Musikveranstaltung",0.5]
["Oper",0.2]
["Operette",0.2]
["Radrennen",0.3]
["Reitsportveranstaltung",0.1]
["Rockkonzert",1]
["Rockkonzert \"Boygroup\"",1.2]
["Schauspiel",0.2]
["Schützenfest",0.5]
["Show",0.2]
["Sportveranstaltung, allgeimen",0.3]
["Stadtteilfest",0.4]
["Straßenfest",0.4]
["Tanzsportveranstaltung",0.3]
["Theater",0.2]
["Volksfest",0.4]
["Weihnachtsmarkt",0.3]

{"sheet":"Einsatzstärke","index":3,"n_rows":25,"n_cols":8,"rows_kept":25,"cut":false,"hidden":false,"merged":[]}
["Einsatzstärke gemäß Punktewert","Einsatzstärke gemäß Punktewert"]
[]
["Punkte von","Punkte bis","Helfer","KTW","RTW","NEF","GKTW","Einsatzleitung"]
[0,1,0,0,0,0,0]
[1.01,2,0,0,0,0,0]
[2.0099999999999998,4,3,0,0,0,0]
[4.01,6,5,1,0,0,0]
[6.01,13,5,1,1,0,0]
[13.01,13.5,5,2,1,1,0]
[13.51,22,10,2,1,1,0,"ELW1, Einsatzleiter, Assistent"]
[22.01,25,20,2,1,1,0,"ELW1, Einsatzleiter, Assistent"]
[25.01,25.5,20,3,1,1,0,"ELW1, Einsatzleiter, Assistent"]
[25.51,30,20,3,2,1,0,"ELW1, Einsatzleiter, Assistent"]
[30.01,40,20,3,2,2,0,"reduzierte stabsmäßige Einsatzleitung"]
[40.01,45.5,30,4,2,2,0,"reduzierte stabsmäßige Einsatzleitung"]
[45.51,60,30,4,3,2,0,"reduzierte stabsmäßige Einsatzleitung"]
[60.01,60.5,40,5,3,3,0,"volle stabsmäßig strukturierte Einsatzleitung"]
[60.51,75.5,40,5,4,3,0,"volle stabsmäßig strukturierte Einsatzleitung"]
[75.510000000000005,80,40,5,5,3,0,"volle stabsmäßig strukturierte Einsatzleitung"]
[80.010000000000005,90,80,6,5,3,0,"volle stabsmäßig strukturierte Einsatzleitung"]
[90.01,100,80,6,5,4,1,"volle stabsmäßig strukturierte Einsatzleitung"]
[100.01,120,120,8,6,4,1,"volle stabsmäßig strukturierte Einsatzleitung"]
[]
[null,"Gesamtpunkte","Helfer","KTW","RTW","NEF","GKTW","Einsatzleitung"]
[null,{"$f":"Gesamtpunkte","v":0},{"$f":"VLOOKUP(Gesamtpunkte,Einsatzstärke,3)","v":0},{"$f":"VLOOKUP(Gesamtpunkte,Einsatzstärke,4)","v":0},{"$f":"VLOOKUP(Gesamtpunkte,Einsatzstärke,5)","v":0},{"$f":"VLOOKUP(Gesamtpunkte,Einsatzstärke,6)","v":0},{"$f":"VLOOKUP(Gesamtpunkte,Einsatzstärke,7)","v":0},{"$f":"VLOOKUP(Gesamtpunkte,Einsatzstärke,8)","v":0}]

{"sheet":"Liste zur Planung","index":4,"n_rows":25,"n_cols":3,"rows_kept":25,"cut":false,"hidden":false,"merged":[]}
["LV-Rundschreiben Nr. I/79/303/96 v. 16.10.1996"]
[]
["Einsätze des DRK bei Großveranstaltungen"]
["Arbeitshilfe für die DRK-Kreisverbände im DRK-Landesverband Westfalen-Lippe für die "]
["Planung und den Einsatz bei Großveranstaltungen"]
[]
["Liste der Planungsunterlagen"]
[null,"lfd. Nr.","Beschreibung"]
[null,"1.","Programm mit genauen Angaben der Abläufe und Geschehnisse"]
[null,"2.","Karten, Pläne und Zeichnungen des Geländes mit Angabe von Sperrzonen sowie Flucht- und Rettungswegen"]
[null,"3.","Berechnungen über die Zahl der teilnehmenden Menschen sowie deren An- und Abmarschwege"]
[null,"4.","Vorgaben des Veranstalters über Plätze für den Sanitätsdienst, Betreuungsdienst, Versorgungsdienst"]
[null,"5.","Übersicht über die jeweiligen Ansprechpartner in der Planung, während des Ablaufs und zum Ende der Veranstaltung"]
[null,"6.","Unterlagen über besondere Gefährdungen"]
[null,"7.","Dienstplan für die Einsatzkräfte"]
[null,"8.","Versorgungsmöglichkeiten"]
[null,"9.","Materialdepots des DRK oder anderer Dienste, die in Anspruch genommen werden können."]
[null,"10.","Fernmeldeskizzen"]
[null,"11.","Alarmkalender für die Alarmierung voralarmierter oder rufbereiter sowie sonstiger Kräfte"]
[null,"12.","Suchdienstarbeit, Pressearbeit, Meldungen an den übergeordneten Verband"]
[null,"13.","Personelle und materielle Reserven"]
[]
[]
[null,"Soweit die Leitungs- und Koordinierungsgruppe der Gefahrenabwehrbehörde (s. § 22 Abs. 2 FSHG NW) aktiviert ist, wird das DRK durch den RKB oder Stellvertreter in dieser vertreten. "]
[null,"Dem Rotkreuzbeauftragten ist daher die komplette Einsatzplanung mit dem Ziel der Koordinierung mit den übrigen Stabsbereichen rechtzeitig zuzuleiten."]

{"sheet":"LV-RS96","index":5,"n_rows":35,"n_cols":6,"rows_kept":35,"cut":false,"hidden":false,"merged":[]}
["LV-Rundschreiben Nr. I/79/303/96 v. 16.10.1996"]
[]
["Einsätze des DRK bei Großveranstaltungen"]
["Arbeitshilfe für die DRK-Kreisverbände im DRK-Landesverband Westfalen-Lippe für die "]
["Planung und den Einsatz bei Großveranstaltungen"]
[]
[]
["Berechnung der Einsatzstärke gem. Anlage 1"]
[]
["Anzahl der Zuschauer:",null,10000,null,"Einsatzkräfte vor Ort","Einsatzkräfte in Voralarm und zusätzlich in Alarmwarnung"]
[]
["Veranstaltung mit geringer Gefahrenneigung",null,"1 Einsatzkraft je 1000 Zuschauer","zuzüglich 20% für Führung und Technik",{"$f":"C10/1000*1.2","v":12},{"$f":"E12","v":12}]
[]
["Veranstaltung mit mittlerer Gefahrenneigung",null,"1 Einsatzkraft je 500 Zuschauer","zuzüglich 20% für Führung und Technik",{"$f":"C10/500*1.2","v":24},{"$f":"E14","v":24}]
[]
["Veranstaltung mit hoher Gefahrenneigung",null,"1 Einsatzkraft je 300 Zuschauer","zuzüglich 20% für Führung und Technik",{"$f":"C10/300*1.2","v":40},{"$f":"E16","v":40}]
[]
[]
["Anzahl der Besucher",null,"Einsatzkräfte (vor Ort) bei geringer Gefährdung","Einsatzkräfte (vor Ort) bei mittlerer Gefährdung","Einsatzkräfte (vor Ort) bei hoher Gefährdung"]
[300,null,2,{"$f":"A20/500*1.2","v":0.72},{"$f":"A20/300*1.2","v":1.2}]
[500,null,2,1.2,2]
[1000,null,2,2.4,4]
[1500,null,{"$f":"A23/1000*1.2","v":1.7999999999999998},3.5999999999999996,6]
[2000,null,2.4,4.8,8]
[3000,null,3.5999999999999996,7.1999999999999993,12]
[5000,null,6,12,20]
[7000,null,8.4,16.8,27.999999999999996]
[10000,null,12,24,40]
[12000,null,14.399999999999999,28.799999999999997,48]
[15000,null,18,36,60]
[20000,null,24,48,80]
[30000,null,36,72,120]
[50000,null,60,120,199.99999999999997]
[70000,null,84,168,280]
[100000,null,120,240,399.99999999999994]